fUSD/lending_fUSD_20250820
["ID","MTS","AMOUNT","RATE_DAILY","PERIOD"]
[380382267,1755719472149,-3426.2172668,0.00024627,2]
[380382268,1755719472159,-302.01126476,0.00024636,2]
[380382269,1755719472169,-219.69688959,0.00024641,2]
[380382270,1755719472179,-9833.9467657,0.00024641,2]
[380382271,1755719472189,-219.69688959,0.00024644,2]
[380382272,1755719472199,-141190.23157638,0.00024645,2]
[380382273,1755719472210,-2519.20565833,0.00024647,2]
[380382274,1755719472220,-219.69688959,0.00024654,2]
[380382275,1755719472230,-200.0,0.00024657,2]
[380382276,1755719472241,-259.53211256,0.00024657,10]
[380382277,1755719472252,-151.0,0.00024658,7]
[380382278,1755719472262,-151.0,0.00024658,7]
[380382279,1755719472273,-151.0,0.00024658,7]
[380382280,1755719472284,-245.0,0.00024658,7]
[380382281,1755719472294,-253.635476,0.00024658,7]
[380382282,1755719472304,-253.635476,0.00024658,7]
[380382283,1755719472315,-253.635476,0.00024658,7]
[380382284,1755719472324,-253.635476,0.00024658,7]
[380382285,1755719472334,-253.635476,0.00024658,7]
[380382286,1755719472345,-253.635476,0.00024658,7]
[380382287,1755719472354,-253.635476,0.00024658,7]
[380382288,1755719472364,-253.635476,0.00024658,7]
[380382289,1755719472374,-253.635476,0.00024658,7]
[380382290,1755719472384,-253.635476,0.00024658,7]
[380382291,1755719472393,-253.635476,0.00024658,7]
[380382292,1755719472402,-253.635476,0.00024658,7]
[380382293,1755719472412,-253.635476,0.00024658,7]
[380382294,1755719472422,-253.635476,0.00024658,7]
[380382295,1755719472436,-253.635476,0.00024658,7]
[380382296,1755719472446,-253.635476,0.00024658,7]
[380382297,1755719472456,-253.635476,0.00024658,7]
[380382298,1755719472466,-253.635476,0.00024658,7]
[380382299,1755719472478,-253.635476,0.00024658,7]
[380382300,1755719472487,-253.635468,0.00024658,7]
[380382301,1755719472497,-1000.0,0.00024658,2]
[380382302,1755719472507,-332.398604,0.00024658,7]
[380382303,1755719472517,-332.398604,0.00024658,7]
[380382304,1755719472527,-332.398604,0.00024658,7]
[380382305,1755719472538,-332.398604,0.00024658,7]
[380382306,1755719472548,-332.398604,0.00024658,7]
[380382307,1755719472558,-500.0,0.00024658,2]
[380382308,1755719472568,-302.01126476,0.00024659,2]
[380382309,1755719472577,-9833.9467657,0.0002466,2]
[380382310,1755719472587,-141190.23157638,0.00024661,2]
[380382311,1755719472597,-3426.2172668,0.00024662,2]
[380382312,1755719472606,-1833.98411464,0.00024663,2]
[380382313,1755719472616,-219.69688959,0.00024667,2]
[380382314,1755719472626,-900.0,0.0002468,9]
[380382315,1755719472636,-900.0,0.0002468,9]
[380382316,1755719472645,-900.0,0.0002468,9]
[380382317,1755719472655,-900.0,0.0002468,9]
[380382318,1755719472664,-900.0,0.0002468,9]
[380382319,1755719472673,-900.0,0.0002468,9]
[380382320,1755719472683,-900.0,0.0002468,9]
[380382321,1755719472692,-900.0,0.0002468,9]
[380382322,1755719472702,-900.0,0.0002468,9]
[380382323,1755719472711,-3426.2172668,0.0002468,2]
[380382324,1755719472720,-219.69688959,0.00024682,2]
[380382325,1755719472730,-3426.2172668,0.00024685,2]
[380382326,1755719472739,-219.69688959,0.00024688,2]
[380382327,1755719472748,-1913.13212349,0.0002469,2]
[380382328,1755719472758,-1000.0,0.00024692,2]
[380382329,1755719472767,-9833.9467657,0.00024699,2]
[380382330,1755719472777,-159.0,0.000247,2]
[380382331,1755719472787,-1913.13212349,0.00024704,2]
[380382332,1755719472797,-650.0,0.00024712,2]
[380382333,1755719472807,-1833.98411464,0.00024713,2]
[380382334,1755719472817,-3426.2172668,0.00024718,2]
[380382335,1755719472826,-215.0,0.0002472,2]
[380382336,1755719472836,-302.01126476,0.0002472,2]
[380382337,1755719472846,-302.01126476,0.00024724,2]
[380382338,1755719472855,-9833.9467657,0.00024726,2]
[380382339,1755719472865,-1000.0,0.00024728,2]
[380382340,1755719472874,-302.01126476,0.0002473,2]
[380382341,1755719472885,-1913.13212349,0.00024734,2]
[380382342,1755719472894,-1833.98411464,0.00024735,2]
[380382343,1755719472903,-219.69688959,0.0002474,2]
[380382344,1755719472913,-1833.98411464,0.00024741,2]
[380382345,1755719472923,-9833.9467657,0.00024742,2]
[380382346,1755719472933,-302.01126476,0.00024744,2]
[380382347,1755719472943,-2519.20565833,0.00024746,2]
[380382348,1755719472953,-141190.23157638,0.00024751,2]
[380382349,1755719472964,-2519.20565833,0.00024753,2]
[380382350,1755719472973,-9833.9467657,0.00024755,2]
[380382351,1755719472984,-2519.20565833,0.00024768,2]
[380382352,1755719472993,-3426.2172668,0.00024768,2]
[380382353,1755719473003,-400.0,0.0002477,2]
[380382354,1755719473012,-700.0,0.0002477,2]
[380382355,1755719473022,-2519.20565833,0.0002477,2]
[380382356,1755719473031,-9833.9467657,0.00024775,2]
[380382357,1755719473042,-74044.31825203,0.00024778,2]
[380382359,1755719474447,-182.730724,0.00019,2]
[380382360,1755719474458,-1073.86494599,0.00024778,2]
[380382361,1755719474602,-151.0,0.000153,2]
[380382362,1755719474614,-151.0,0.00019,2]
[380382363,1755719474624,-182.730724,0.000209,2]
[380382364,1755719474635,-151.0,0.000209,2]
[380382365,1755719474644,-182.730724,0.00021899,2]
[380382366,1755719474653,-661.038557,0.00021949,2]
[380382367,1755719474665,-232.961443,0.00021949,2]
[380382368,1755719474675,-117.7141825,0.00021999,7]
[380382369,1755719474694,-65.0165455,0.00021999,7]
[380382370,1755719474704,-446.4,0.00023726,2]
[380382371,1755719474714,-446.4,0.00024616,2]
[380382372,1755719474732,-332.398604,0.00024658,7]
[380382373,1755719474751,-332.398604,0.00024658,7]
[380382374,1755719474761,-332.398604,0.00024658,7]
[380382375,1755719474770,-332.398604,0.00024658,7]
[380382376,1755719474786,-332.398604,0.00024658,7]
[380382377,1755719474801,-332.398604,0.00024658,7]
[380382378,1755719474811,-332.398604,0.00024658,7]
[380382379,1755719474821,-27188.15225124,0.00024778,2]
[380382380,1755719474836,-151.0,0.00021899,2]
[380382381,1755719474845,-306.75368,0.00024778,2]
[380382382,1755719475078,-690.92938547,0.00011,2]
[380382396,1755719925491,-27188.15225124,0.00016681,7]
[380382397,1755719933426,-32.398604,0.00011273,2]
[380382398,1755719934686,-267.601396,0.00011273,2]
[380382399,1755719941562,-32.398604,0.00011548,2]
[380382400,1755719941587,-267.601396,0.00011548,2]
[380382401,1755719949468,-32.398604,0.00011824,2]
[380382402,1755719949494,-267.601396,0.00011824,2]
[380382407,1755720164041,323.41,0.00025831,120]
[380382417,1755720472978,-332.398604,0.00012898,5]
[380382418,1755720479770,-332.398604,0.00012898,5]
[380382419,1755720486868,-332.398604,0.00012898,5]
[380382420,1755720494555,-332.398604,0.00012798,2]
[380382432,1755720631602,-167.601396,0.00012798,2]
[380382433,1755720631612,-6281.80890433,0.00012898,5]
[380382434,1755720631622,-1064.36163282,0.00013003,2]
[380382435,1755720631631,-300.0,0.00013103,2]
[380382436,1755720631641,-1200.0,0.00013306,2]
[380382437,1755720631651,-300.0,0.00013517,2]
[380382438,1755720631872,-795.65,0.00013699,2]
[380382439,1755720631882,-310.0,0.00014078,2]
[380382440,1755720631891,-300.0,0.00014078,2]
[380382441,1755720631900,-250.0,0.00014078,2]
[380382442,1755720631909,-300.0,0.00014188,2]
[380382443,1755720631918,-2000.0,0.00014188,2]
[380382444,1755720631928,-300.0,0.00014188,2]
[380382445,1755720631937,-2000.0,0.00014188,2]
[380382446,1755720631946,-310.0,0.00014188,2]
[380382447,1755720631955,-555.69975417,0.00014374,2]
[380382448,1755720631965,-1680.0,0.00014637,2]
[380382449,1755720631974,-1064.36163282,0.00014802,2]
[380382450,1755720631983,-250.0,0.00015,2]
[380382451,1755720631993,-500.0,0.0001589,2]
[380382452,1755720632002,-1468.0,0.000161,2]
[380382453,1755720632012,-150.0,0.00016115,2]
[380382454,1755720632021,-1680.36,0.00016116,2]
[380382455,1755720632030,-19999.99,0.00016116,2]
[380382456,1755720632039,-1064.36163282,0.000166,2]
[380382457,1755720632048,-500.0,0.0001668,2]
[380382458,1755720632058,-334.45237977,0.0001668,2]
[380382459,1755720632067,-12887.9215907,0.00016681,7]
[380382460,1755720632076,-48856.7973324,0.00016681,7]
[380382461,1755720632085,-500.0,0.000167,2]
[380382462,1755720632095,-151.0,0.00016912,2]
[380382463,1755720632104,-300.0,0.00017,2]
[380382464,1755720632114,-458.46930693,0.00017,7]
[380382465,1755720632125,-212.04014818,0.00017,7]
[380382466,1755720632135,-9663.56367304,0.00017138,2]
[380382467,1755720632144,-938.20552529,0.00017248,2]
[380382468,1755720632154,-500.0,0.00018082,6]
[380382469,1755720632163,-10872.55,0.00018117,2]
[380382470,1755720632173,-1500.0,0.00018246,2]
[380382471,1755720632182,-500.0,0.00018438,2]
[380382472,1755720632191,-520.29009877,0.00018462,2]
[380382473,1755720632201,-1000.0,0.0001856,2]
[380382474,1755720632210,-150.0,0.00018681,2]
[380382475,1755720632220,-200.0,0.00018684,2]
[380382476,1755720632229,-323.41,0.00018786,2]
[380382477,1755720632239,-466.57,0.00018827,2]
[380382478,1755720632249,-500.0,0.00018839,2]
[380382479,1755720632258,-1045.00249587,0.00018843,2]
[380382480,1755720632268,-160.0,0.00018948,7]
[380382481,1755720632277,-458.9,0.00018963,2]
[380382482,1755720632286,-458.9,0.00018977,2]
[380382483,1755720632295,-458.9,0.00018991,2]
[380382484,1755720632305,-350.0,0.00019,2]
[380382485,1755720632315,-458.9,0.00019005,2]
[380382486,1755720632324,-458.9,0.0001902,2]
[380382487,1755720632333,-458.9,0.00019034,2]
[380382488,1755720632343,-458.9,0.00019048,2]
[380382489,1755720632353,-458.9,0.00019062,2]
[380382490,1755720632362,-458.9,0.00019076,2]
[380382491,1755720632372,-458.9,0.0001909,2]
[380382492,1755720632381,-458.9,0.00019105,2]
[380382493,1755720632390,-458.9,0.00019119,2]
[380382494,1755720632399,-458.9,0.00019133,2]
[380382495,1755720632408,-458.9,0.00019147,2]
[380382496,1755720632420,-458.9,0.00019161,2]
[380382497,1755720632438,-458.9,0.00019175,2]
[380382498,1755720632456,-151.0,0.00019178,2]
[380382499,1755720632466,-458.9,0.0001919,2]
[380382500,1755720632477,-458.9,0.00019204,2]
[380382501,1755720632487,-250.0,0.00019212,2]
[380382502,1755720632496,-458.9,0.00019218,2]
[380382503,1755720632506,-464.07,0.00019222,2]
[380382504,1755720632515,-458.9,0.00019232,2]
[380382505,1755720632524,-160.0,0.00019249,2]
[380382506,1755720632533,-458.46930693,0.00019249,2]
[380382507,1755720632543,-212.04014818,0.00019249,2]
[380382508,1755720632552,-843.97594471,0.00019251,2]
[380382509,1755720632562,-167.7,0.0001931,2]
[380382510,1755720632573,-150.99,0.00019339,2]
[380382511,1755720632583,-156.587,0.00019726,2]
[380382512,1755720632593,-1834.76,0.00019746,2]
[380382513,1755720632602,-1594.48,0.00019751,2]
[380382514,1755720632615,-244.52,0.00019773,2]
[380382515,1755720632625,-523.41,0.00019789,2]
[380382516,1755720632635,-200.0,0.00019817,2]
[380382517,1755720632646,-186.91,0.00019863,2]
[380382518,1755720632656,-400.0,0.0001997,2]
[380382519,1755720632665,-500.0,0.0002,2]
[380382520,1755720632675,-500.0,0.0002,2]
[380382521,1755720632684,-500.0,0.0002,2]
[380382522,1755720632694,-500.0,0.0002,2]
[380382523,1755720632703,-795.65,0.00020187,2]
[380382524,1755720632712,-500.0,0.0002021,2]
[380382525,1755720632721,-500.0,0.0002021,2]
[380382526,1755720632730,-666.0,0.00020241,3]
[380382527,1755720632739,-500.0,0.00020273,10]
[380382528,1755720632752,-197.97571825,0.00020274,2]
[380382529,1755720632762,-746.84192583,0.00020548,2]
[380382530,1755720632771,-1000.0,0.00020548,2]
[380382531,1755720632781,-2979.0,0.000206,2]
[380382532,1755720632792,-203.37727235,0.00020658,2]
[380382533,1755720632802,-165.24,0.0002067,2]
[380382534,1755720632811,-204.16547613,0.00020758,2]
[380382535,1755720632822,-1000.0,0.00020758,2]
[380382536,1755720632832,-1000.0,0.0002088,2]
[380382537,1755720632841,-1500.0,0.00021096,2]
[380382538,1755720632852,-5512.0,0.000211,3]
[380382539,1755720632861,-323.41,0.00021134,2]
[380382540,1755720632871,-151.0,0.00021286,2]
[380382541,1755720632881,-721.12765535,0.00021286,2]
[380382542,1755720632890,-261.3309871,0.00021286,2]
[380382543,1755720632900,-322.6107,0.00021286,2]
[380382544,1755720632909,-151.0,0.00021286,2]
[380382545,1755720632919,-151.0,0.00021286,2]
[380382546,1755720632928,-151.0,0.00021286,2]
[380382547,1755720632938,-277.35679052,0.00021286,2]
[380382548,1755720632947,-151.0,0.00021286,2]
[380382549,1755720632957,-151.0,0.00021286,2]
[380382550,1755720632966,-151.0,0.00021286,2]
[380382551,1755720632976,-294.0,0.00021286,2]
[380382552,1755720632985,-346.65,0.00021324,2]
[380382553,1755720632994,-300.0,0.00021324,2]
[380382554,1755720633004,-1000.0,0.00021644,2]
[380382555,1755720633014,-5512.0,0.000217,5]
[380382556,1755720633023,-151.0,0.00021834,2]
[380382557,1755720633033,-1500.0,0.00021873,2]
[380382558,1755720633043,-500.0,0.00021886,2]
[380382559,1755720633052,-800.0,0.00021886,2]
[380382560,1755720633062,-600.0,0.00021886,2]
[380382561,1755720633072,-248.83,0.000219,2]
[380382562,1755720633082,-150.0,0.00021918,2]
[380382563,1755720633091,-200.0,0.00021918,2]
[380382564,1755720633101,-501.32047253,0.00021925,2]
[380382565,1755720633110,-2003.32,0.00021945,30]
[380382566,1755720633120,-400.0,0.0002197,2]
[380382567,1755720633130,-400.0,0.0002197,2]
[380382568,1755720633139,-150.0,0.00022,2]
[380382569,1755720633150,-798.85,0.00022023,2]
[380382570,1755720633160,-798.85,0.00022023,2]
[380382571,1755720633170,-2222.22,0.000221,2]
[380382572,1755720633180,-286.8585593,0.00022382,2]
[380382573,1755720633189,-4152.0,0.00022417,2]
[380382574,1755720633199,-21495.0,0.00022417,2]
[380382575,1755720633209,-482.68,0.00022465,14]
[380382576,1755720633219,-500.0,0.00022521,2]
[380382577,1755720633229,-334.5472959,0.00022655,2]
[380382578,1755720633238,-287.61899177,0.00022655,2]
[380382579,1755720633248,-166.16,0.0002266,2]
[380382580,1755720633258,-500.0,0.0002274,2]
[380382581,1755720633268,-500.0,0.0002274,2]
[380382582,1755720633278,-741.0,0.0002274,2]
[380382583,1755720633288,-500.0,0.0002274,2]
[380382584,1755720633298,-150.0,0.0002274,2]
[380382585,1755720633308,-500.0,0.0002274,2]
[380382586,1755720633319,-500.0,0.0002274,2]
[380382587,1755720633328,-500.0,0.0002274,2]
[380382588,1755720633338,-500.0,0.0002274,2]
[380382589,1755720633348,-150.0,0.0002274,2]
[380382590,1755720633358,-150.0,0.0002274,2]
[380382591,1755720633367,-500.0,0.0002274,2]
[380382592,1755720633377,-150.0,0.0002274,2]
[380382593,1755720633387,-500.0,0.0002274,2]
[380382594,1755720633397,-500.0,0.0002274,2]
[380382595,1755720633407,-150.0,0.0002274,2]
[380382596,1755720633417,-150.07537585,0.0002274,2]
[380382597,1755720633427,-500.0,0.0002274,2]
[380382598,1755720633436,-500.0,0.0002274,2]
[380382599,1755720633447,-150.0,0.0002274,2]
[380382600,1755720633456,-500.0,0.0002274,2]
[380382601,1755720633466,-150.0,0.0002274,2]
[380382602,1755720633476,-500.0,0.0002274,2]
[380382603,1755720633486,-500.0,0.0002274,2]
[380382604,1755720633497,-500.0,0.00022793,2]
[380382605,1755720633507,-500.0,0.00022793,2]
[380382606,1755720633517,-500.0,0.00022793,2]
[380382607,1755720633527,-500.0,0.00022793,2]
[380382608,1755720633537,-500.0,0.00022793,2]
[380382609,1755720633547,-500.0,0.00022793,2]
[380382610,1755720633557,-200.0,0.000228,2]
[380382611,1755720633567,-600.0,0.00022822,2]
[380382612,1755720633577,-1000.0,0.00022868,2]
[380382613,1755720633587,-500.0,0.00022883,2]
[380382614,1755720633598,-500.0,0.00022883,2]
[380382615,1755720633607,-500.0,0.00022883,2]
[380382616,1755720633617,-1000.0,0.00022968,2]
[380382617,1755720633627,-34564.7903,0.00022968,2]
[380382618,1755720633645,-800.0,0.00022982,2]
[380382619,1755720633665,-600.0,0.00022982,2]
[380382620,1755720633675,-5326.21,0.0002299,2]
[380382621,1755720633684,-521.90060179,0.00023,2]
[380382622,1755720633694,-746.5,0.00023,7]
[380382623,1755720633703,-500.0,0.00023014,2]
[380382624,1755720633713,-500.0,0.00023014,2]
[380382625,1755720633722,-741.0,0.00023014,2]
[380382626,1755720633732,-500.0,0.00023014,2]
[380382627,1755720633742,-150.0,0.00023014,2]
[380382628,1755720633758,-500.0,0.00023014,2]
[380382629,1755720633775,-500.0,0.00023014,2]
[380382630,1755720633785,-500.0,0.00023014,2]
[380382631,1755720633795,-500.0,0.00023014,2]
[380382632,1755720633806,-150.0,0.00023014,2]
[380382633,1755720633816,-150.0,0.00023014,2]
[380382634,1755720633826,-500.0,0.00023014,2]
[380382635,1755720633836,-500.0,0.00023014,2]
[380382636,1755720633846,-500.0,0.00023014,2]
[380382637,1755720633855,-150.0,0.00023014,2]
[380382638,1755720633864,-500.0,0.00023014,2]
[380382639,1755720633874,-500.0,0.00023014,2]
[380382640,1755720633884,-500.0,0.00023014,2]
[380382641,1755720633893,-500.0,0.00023014,2]
[380382642,1755720633903,-500.0,0.00023014,2]
[380382643,1755720633912,-200.0,0.000231,7]
[380382644,1755720633922,-1000.0,0.000232,2]
[380382645,1755720633931,-1125.0,0.00023202,2]
[380382646,1755720633942,-2000.0,0.00023202,2]
[380382647,1755720633951,-200.0,0.00023202,2]
[380382648,1755720633960,-500.0,0.00023288,2]
[380382649,1755720633970,-500.0,0.00023288,2]
[380382650,1755720633979,-741.0,0.00023288,2]
[380382651,1755720633988,-500.0,0.00023288,2]
[380382652,1755720633998,-250.15831044,0.00023288,2]
[380382653,1755720634008,-500.0,0.00023288,2]
[380382654,1755720634017,-500.0,0.00023288,2]
[380382655,1755720634026,-150.0,0.00023288,2]
[380382656,1755720634036,-500.0,0.00023288,2]
[380382657,1755720634046,-200.0,0.00023288,2]
[380382658,1755720634055,-150.0,0.00023288,2]
[380382659,1755720634065,-500.0,0.00023288,2]
[380382660,1755720634075,-550.0,0.00023288,2]
[380382661,1755720634085,-350.0,0.00023288,2]
[380382662,1755720634094,-150.0,0.00023288,2]
[380382663,1755720634104,-500.0,0.00023288,2]
[380382664,1755720634113,-500.0,0.00023288,2]
[380382665,1755720634124,-500.0,0.00023288,2]
[380382666,1755720634134,-500.0,0.00023288,2]
[380382667,1755720634144,-500.0,0.00023288,2]
[380382668,1755720634154,-150.0,0.00023288,2]
[380382669,1755720634163,-500.0,0.00023288,2]
[380382670,1755720634173,-500.0,0.00023288,2]
[380382671,1755720634183,-500.0,0.00023288,2]
[380382672,1755720634192,-500.0,0.00023288,2]
[380382673,1755720634202,-500.0,0.00023288,2]
[380382674,1755720634212,-150.0,0.00023288,2]
[380382675,1755720634221,-500.0,0.00023288,2]
[380382676,1755720634231,-150.0,0.00023288,2]
[380382677,1755720634241,-500.0,0.00023288,2]
[380382678,1755720634250,-150.0,0.00023288,2]
[380382679,1755720634260,-150.0,0.00023288,2]
[380382680,1755720634270,-150.0,0.00023288,2]
[380382681,1755720634279,-150.0,0.00023288,2]
[380382682,1755720634288,-150.0,0.00023288,2]
[380382683,1755720634298,-150.0,0.00023288,2]
[380382684,1755720634308,-500.0,0.00023288,2]
[380382685,1755720634317,-500.0,0.00023288,2]
[380382686,1755720634327,-150.0,0.00023288,2]
[380382687,1755720634337,-150.0,0.00023288,2]
[380382688,1755720634346,-500.0,0.00023288,2]
[380382689,1755720634356,-150.0,0.00023288,2]
[380382690,1755720634365,-500.0,0.00023288,2]
[380382691,1755720634374,-150.0,0.00023288,2]
[380382692,1755720634384,-150.0,0.00023288,2]
[380382693,1755720634393,-500.0,0.00023288,2]
[380382694,1755720634402,-150.0,0.00023288,2]
[380382695,1755720634411,-2000.0,0.00023326,2]
[380382696,1755720634421,-500.0,0.00023341,2]
[380382697,1755720634430,-995.84403226,0.00023341,2]
[380382698,1755720634440,-1000.0,0.00023341,2]
[380382699,1755720634450,-500.0,0.00023341,2]
[380382700,1755720634461,-2222.22,0.00023361,2]
[380382701,1755720634471,-936.59114207,0.00023362,2]
[380382702,1755720634482,-600.0,0.0002337,2]
[380382703,1755720634492,-800.48716834,0.00023403,2]
[380382704,1755720634501,-500.0,0.00023431,2]
[380382705,1755720634511,-500.0,0.00023431,2]
[380382706,1755720634524,-190494.8576,0.00023462,2]
[380382707,1755720634541,-500.0,0.00023473,2]
[380382708,1755720634551,-500.0,0.00023473,2]
[380382709,1755720634561,-500.0,0.00023473,2]
[380382710,1755720634570,-500.0,0.00023473,2]
[380382711,1755720634579,-323.41,0.00023482,2]
[380382712,1755720634588,-200.0,0.0002351,7]
[380382713,1755720634597,-150.0,0.00023538,2]
[380382714,1755720634607,-899.93668257,0.0002354,2]
[380382715,1755720634616,-1146.97812484,0.00023541,2]
[380382716,1755720634625,-5326.21,0.00023542,2]
[380382717,1755720634634,-1394.01956712,0.00023543,2]
[380382718,1755720634643,-1641.06100939,0.00023544,2]
[380382719,1755720634653,-175.0,0.00023544,2]
[380382720,1755720634662,-1888.10245166,0.00023546,2]
[380382721,1755720634673,-2135.14389394,0.00023547,2]
[380382722,1755720634684,-2382.18533621,0.00023549,2]
[380382723,1755720634693,-2629.22677849,0.0002355,2]
[380382724,1755720634705,-2876.26822076,0.00023552,2]
[380382725,1755720634714,-2000.0,0.00023561,2]
[380382726,1755720634723,-500.0,0.00023562,2]
[380382727,1755720634734,-502.0,0.00023562,2]
[380382728,1755720634743,-741.0,0.00023562,2]
[380382729,1755720634757,-500.0,0.00023562,2]
[380382730,1755720634766,-500.0,0.00023562,2]
[380382731,1755720634776,-500.0,0.00023562,2]
[380382732,1755720634785,-500.0,0.00023562,2]
[380382733,1755720634795,-150.0,0.00023562,2]
[380382734,1755720634804,-500.0,0.00023562,2]
[380382736,1755720634814,-150.0,0.00023562,2]
[380382737,1755720634823,-500.0,0.00023562,2]
[380382738,1755720634833,-500.0,0.00023562,2]
[380382739,1755720634843,-500.0,0.00023562,2]
[380382740,1755720634852,-500.0,0.00023562,2]
[380382741,1755720634861,-500.0,0.00023562,2]
[380382742,1755720634870,-150.0,0.00023562,2]
[380382744,1755720634880,-500.0,0.00023562,2]
[380382746,1755720634889,-500.0,0.00023562,2]
[380382748,1755720634899,-500.0,0.00023562,2]
[380382750,1755720634909,-500.0,0.00023562,2]
[380382752,1755720634918,-500.0,0.00023562,2]
[380382754,1755720634928,-150.0,0.00023562,2]
[380382756,1755720634937,-500.0,0.00023562,2]
[380382758,1755720634946,-150.0,0.00023562,2]
[380382760,1755720634955,-500.0,0.00023562,2]
[380382762,1755720634965,-205.02295732,0.00023562,2]
[380382764,1755720634974,-150.0,0.00023562,2]
[380382765,1755720634983,-150.0,0.00023562,2]
[380382766,1755720634993,-150.0,0.00023562,2]
[380382767,1755720635002,-150.0,0.00023562,2]
[380382769,1755720635012,-150.0,0.00023562,2]
[380382771,1755720635021,-500.0,0.00023562,2]
[380382773,1755720635030,-500.0,0.00023562,2]
[380382775,1755720635039,-150.0,0.00023562,2]
[380382777,1755720635048,-150.0,0.00023562,2]
[380382779,1755720635058,-500.0,0.00023562,2]
[380382781,1755720635067,-150.0,0.00023562,2]
[380382783,1755720635076,-500.0,0.00023562,2]
[380382785,1755720635085,-150.0,0.00023562,2]
[380382787,1755720635094,-150.0,0.00023562,2]
[380382789,1755720635103,-500.0,0.00023562,2]
[380382791,1755720635112,-204.69610861,0.00023562,2]
[380382793,1755720635123,-1831.0,0.000236,2]
[380382795,1755720635132,-458.46930693,0.000236,7]
[380382797,1755720635141,-175.0,0.00023642,2]
[380382799,1755720635151,-168.0,0.00023655,2]
[380382800,1755720635161,-17996.6492,0.00023655,2]
[380382802,1755720635171,-800.48716834,0.00023694,2]
[380382804,1755720635180,-267.84,0.00023726,2]
[380382806,1755720635190,-936.591142,0.00023755,2]
[380382808,1755720635199,-175.0,0.00023778,2]
[380382810,1755720635209,-344.32443,0.000238,2]
[380382812,1755720635218,-2000.0,0.000238,2]
[380382814,1755720635228,-175.0,0.0002382,2]
[380382815,1755720635237,-500.0,0.00023836,2]
[380382816,1755720635247,-741.0,0.00023836,2]
[380382817,1755720635257,-200.0,0.00023836,2]
[380382819,1755720635267,-500.0,0.00023836,2]
[380382821,1755720635277,-500.0,0.00023836,2]
[380382822,1755720635287,-500.0,0.00023836,2]
[380382823,1755720635297,-150.0,0.00023836,2]
[380382824,1755720635307,-500.0,0.00023836,2]
[380382825,1755720635317,-500.0,0.00023836,2]
[380382826,1755720635327,-500.0,0.00023836,2]
[380382827,1755720635337,-213.2586166,0.00023836,2]
[380382828,1755720635347,-500.0,0.00023836,2]
[380382829,1755720635356,-150.0,0.00023836,2]
[380382830,1755720635365,-500.0,0.00023836,2]
[380382831,1755720635376,-150.0,0.00023836,2]
[380382832,1755720635385,-500.0,0.00023836,2]
[380382833,1755720635395,-150.0,0.00023836,2]
[380382834,1755720635404,-350.0,0.00023836,2]
[380382835,1755720635413,-200.0,0.00023836,2]
[380382836,1755720635423,-500.0,0.00023836,2]
[380382837,1755720635433,-150.0,0.00023836,2]
[380382838,1755720635442,-200.0,0.00023836,2]
[380382839,1755720635452,-200.0,0.00023836,2]
[380382840,1755720635461,-150.0,0.00023836,2]
[380382841,1755720635471,-350.0,0.00023836,2]